bitfinex-derivatives/quotes_ETHF0:USTF0_20250214
["timestamp","ask_amount","ask_price","bid_price","bid_amount"]
[1739571234581,0.00546428,2741.4,2741.3,0.72932]
[1739571241571,3.2078,2741.8,2741.7,0.72922]
[1739571242279,3.2078,2741.8,2741.7,1.30112]
[1739571243782,0.00546428,2742.0,2741.9,0.72916]
[1739571244985,3.2078,2742.6,2742.5,0.729]
[1739571245577,3.2078,2742.6,2742.5,1.2887]
[1739571248083,0.00546428,2742.8,2742.7,0.72895]
[1739571253592,0.00546428,2742.8,2742.7,1.26245]
[1739571259598,3.2078,2743.4,2743.3,0.72879]
[1739571259790,3.2078,2743.4,2743.3,3.22879]
[1739571261593,0.58706428,2743.6,2743.3,6.35974848]
[1739571261795,0.00546428,2743.6,2743.5,0.72874]
[1739571265593,0.00546428,2743.6,2743.5,1.02638595]
[1739571266801,0.00546428,2743.6,2743.5,0.72874]
[1739571269900,0.00546428,2743.6,2743.5,3.93654]
[1739571271102,0.00546428,2743.6,2743.5,3.22674]
[1739571274000,0.00546428,2743.6,2743.3,3.13095848]
[1739571274205,0.00546428,2743.6,2743.5,0.72874]
[1739571274409,0.58846428,2743.6,2743.5,0.72874]
[1739571277607,0.7288,2743.3,2743.1,0.73430428]
[1739571277807,0.5707,2743.2,2743.1,3.23230428]
[1739571278403,0.5707,2743.2,2743.1,2.50346428]
[1739571279412,1.29952,2743.2,2743.1,2.50346428]
[1739571279610,0.5707,2743.2,2743.1,2.50346428]
[1739571279813,1.29952,2743.2,2743.1,2.50346428]
[1739571280211,1.29952,2743.2,2743.1,0.00546428]
[1739571283918,1.29952,2743.2,2743.1,0.73430428]
[1739571284118,1.29952,2743.2,2743.1,0.00546428]
[1739571292325,4.50732,2743.2,2743.1,0.00546428]
[1739571294321,7.63827848,2743.2,2743.1,0.00546428]
[1739571295233,4.50732,2743.2,2743.1,0.00546428]
[1739571296734,7.63827848,2743.2,2743.1,0.00546428]
[1739571296938,7.63827848,2743.2,2742.1,3.13095848]
[1739571296939,3.64451,2742.9,2742.0,0.72911]
[1739571297232,3.93686,2742.3,2742.2,2.497]
[1739571297621,3.93686,2742.3,2742.1,0.5461]
[1739571297622,0.72908,2742.2,2742.1,0.5461]
[1739571297825,3.2078,2742.3,2742.0,0.5757]
[1739571297826,0.72911,2742.1,2742.0,0.5757]
[1739571300429,0.72911,2742.1,2742.0,1.30484]
[1739571300738,0.72911,2742.1,2742.0,0.5757]
[1739571302825,3.2078,2742.2,2741.9,0.00546428]
[1739571303028,1.29744,2742.0,2741.9,0.00546428]
[1739571303537,0.72914,2742.0,2741.9,0.00546428]
[1739571303737,1.84624,2742.0,2741.9,0.00546428]
[1739571305437,1.29744,2742.0,2741.9,0.00546428]
[1739571305640,4.42839848,2742.0,2741.9,0.00546428]
[1739571305935,10.42839848,2742.0,2741.9,0.00546428]
[1739571306142,0.72928,2741.6,2741.5,0.72925]
[1739571306438,0.72927,2741.5,2741.4,1.89367]
[1739571308039,0.72927,2741.5,2741.4,1.1644]
[1739571308339,3.93707,2741.5,2741.4,0.576]
[1739571312032,3.93707,2741.5,2741.4,1.3053]
[1739571314334,3.93707,2741.5,2741.4,0.576]
[1739571315635,3.93707,2741.5,2741.4,1.3053]
[1739571316140,3.93707,2741.5,2741.4,0.576]
[1739571317238,0.72932,2741.3,2741.2,0.00546428]
[1739571318351,3.2078,2741.1,2739.2,5.7038]
[1739571318647,3.2078,2739.7,2739.3,0.5333]
[1739571318844,3.2078,2739.4,2739.1,1.30554423]
[1739571319140,3.2078,2739.4,2738.8,3.2078]
[1739571319346,3.2078,2739.4,2739.2,0.72987]
[1739571319544,7.06858848,2739.4,2739.3,1.0726]
[1739571319739,6.33875848,2739.4,2738.6,0.5619]
[1739571320045,0.73001,2738.8,2738.6,0.5619]
[1739571320245,0.73003,2738.7,2738.5,0.5393]
[1739571320642,0.73,2738.8,2738.5,0.5393]
[1739571320842,3.2078,2738.9,2738.5,0.5393]
[1739571321038,3.13095848,2739.3,2738.5,0.5393]
[1739571321346,0.73,2738.8,2738.5,3.0363]
[1739571321641,3.93778,2738.9,2738.5,3.0363]
[1739571322144,0.72992,2739.1,2738.6,0.73003]
[1739571322339,3.2078,2738.9,2738.5,3.0363]
[1739571322542,3.2078,2739.2,2738.8,0.72999]
[1739571322738,3.2078,2739.2,2738.7,0.73]
[1739571322939,3.2078,2739.2,2738.5,3.0363]
[1739571323140,0.72991,2739.1,2738.6,0.73003]
[1739571323947,3.2078,2738.8,2738.5,0.5393]
[1739571324143,0.73001,2738.7,2738.5,0.5393]
[1739571324350,0.73004,2738.6,2738.5,0.5393]
[1739571324747,3.2078,2738.8,2738.5,0.5393]
[1739571324941,0.73004,2738.6,2738.5,0.5393]
[1739571325842,0.73003,2738.7,2738.5,0.5393]
[1739571326739,3.2078,2738.8,2738.5,0.5393]
[1739571326941,0.73002,2738.7,2738.5,0.5393]
[1739571327141,0.72995,2739.0,2738.7,0.73]
[1739571327542,3.2078,2739.1,2738.5,0.5393]
[1739571327751,3.2078,2739.1,2738.9,0.72995]
[1739571328438,3.2078,2739.1,2739.0,0.72994]
[1739571328643,3.2078,2739.1,2738.9,0.72995]
[1739571328854,3.2078,2739.1,2738.8,0.5415]
[1739571329153,0.72995,2739.0,2738.8,0.5415]
[1739571329652,3.2078,2739.1,2738.8,0.5415]
[1739571329950,3.2078,2739.1,2738.6,2.497]
[1739571330150,0.72997,2738.9,2738.6,3.22702]
[1739571330339,0.73,2738.8,2738.6,3.22702]
[1739571330542,0.73,2738.8,2738.6,2.497]
[1739571330743,3.2078,2739.1,2738.6,2.497]
[1739571330953,0.72999,2738.8,2738.6,3.22704]
[1739571331345,3.2078,2739.1,2738.6,2.497]
[1739571331755,0.561,2739.0,2738.6,2.497]
[1739571331957,0.73,2738.8,2738.6,2.497]
[1739571332449,0.73,2738.8,2738.5,5.02435]
[1739571332754,0.73,2738.8,2738.6,0.73003]
[1739571332955,0.561,2739.0,2738.5,4.2943]
[1739571333158,0.72996,2738.9,2738.6,0.73003]
[1739571333350,0.72996,2738.9,2738.5,4.2943]
[1739571333548,0.72996,2738.9,2738.6,0.73003]
[1739571334854,0.561,2739.0,2738.5,4.2943]
[1739571335050,0.73004,2738.6,2738.5,1.0865]
[1739571335746,0.73007,2738.5,2738.4,2.498]
[1739571336151,3.2078,2738.7,2737.8,3.13095848]
[1739571336152,1.82511,2738.6,2737.8,3.13095848]
[1739571336355,1.82511,2738.6,2736.1,10.00593625]
[1739571336356,6.26191696,2737.9,2736.1,4.51334423]
[1739571336651,6.26191696,2737.9,2735.6,2.65339202]
[1739571336652,3.13095848,2736.5,2735.9,3.2078]
[1739571336955,1.163,2737.8,2735.9,3.2078]
[1739571336956,6.33875848,2737.1,2736.0,0.5814]
[1739571337156,6.33875848,2737.1,2736.5,3.2078]
[1739571337343,6.33875848,2737.1,2736.1,6.23575848]
[1739571337344,0.00547545,2737.3,2736.8,3.2078]
[1739571337553,0.00547545,2737.3,2736.9,0.5814]
[1739571337856,3.2078,2738.1,2737.1,3.2078]
[1739571338062,3.2078,2738.1,2737.0,6.24375848]
[1739571338063,3.2078,2738.1,2737.6,0.7303]
[1739571338256,3.2078,2738.1,2737.7,3.1534]
[1739571338553,3.2078,2738.1,2738.0,0.7302]
[1739571338760,3.2078,2738.1,2737.8,0.73024]
[1739571339255,3.2078,2738.1,2737.7,3.1534]
[1739571339256,0.73019,2738.1,2737.7,0.58687545]
[1739571339455,3.21327545,2738.2,2737.7,0.58687545]
[1739571339757,0.73025,2737.8,2737.7,0.00547545]
[1739571341660,3.93804,2737.9,2737.7,0.00547545]
[1739571341859,3.2078,2737.9,2737.7,0.00547545]
[1739571342065,0.73025,2737.8,2737.7,0.00547545]
[1739571342850,7.82565,2737.8,2736.7,0.5823]
[1739571343059,6.33875848,2736.9,2736.7,1.31285]
[1739571343356,3.13095848,2736.9,2736.7,0.5823]
[1739571343560,6.33875848,2736.9,2736.7,1.31283]
[1739571343964,3.13095848,2736.9,2736.7,1.31283]
[1739571344262,6.33875848,2737.2,2736.7,0.5823]
[1739571344463,6.33875848,2737.2,2737.0,0.73047]
[1739571344964,6.33875848,2737.2,2736.7,0.5823]
[1739571345267,3.93834,2736.8,2736.4,0.73063]
[1739571345563,7.8865342,2736.8,2736.3,2.586]
[1739571345759,7.8865342,2736.8,2736.4,0.73063]
[1739571345956,7.16146965,2736.8,2736.4,0.73063]
[1739571346256,0.00547545,2736.8,2736.7,0.73055]
[1739571346458,0.00547545,2736.8,2736.3,5.7938]
[1739571346763,0.00547545,2736.8,2736.7,0.73055]
[1739571347462,0.00547545,2736.8,2736.7,2.584]
[1739571347863,0.00547545,2736.8,2736.7,3.31455]
[1739571348054,0.00547545,2736.8,2736.7,3.31855]
[1739571348259,0.00547545,2736.8,2736.7,2.588]
[1739571348457,0.00547545,2736.8,2736.7,3.31855]
[1739571348862,7.16146965,2736.8,2736.0,3.2078]
[1739571349061,3.9481942,2736.5,2736.0,5.7948]
[1739571349456,0.7307,2736.2,2735.9,2.597]
[1739571349656,3.2078,2736.4,2735.9,2.597]
[1739571350056,0.73077,2735.9,2735.6,0.73083]
[1739571350261,3.2078,2735.8,2735.3,3.2078]
[1739571350460,3.9481942,2735.9,2735.3,3.2078]
[1739571350666,3.2078,2736.1,2735.3,3.2078]
[1739571350967,3.2078,2736.1,2735.4,1.6685]
[1739571351166,3.2078,2736.1,2735.3,3.2078]
[1739571351468,3.93863,2735.7,2735.3,0.73091]
[1739571351769,3.2078,2737.1,2735.6,3.9481942]
[1739571351963,1.28926,2736.7,2736.3,0.73064]
[1739571352164,3.2078,2737.1,2736.2,2.643]
[1739571352165,0.5887,2737.0,2736.2,2.643]
[1739571352664,0.5887,2737.0,2736.7,0.73055]
[1739571352974,3.2078,2737.4,2736.7,6.58035]
[1739571353169,3.2078,2737.4,2737.2,0.7304]
[1739571353382,4.3671,2737.7,2737.1,2.645]
[1739571353564,4.3671,2737.7,2737.6,0.73031]
[1739571353764,1.82514,2738.6,2737.0,3.2078]
[1739571353765,7.1559942,2738.4,2737.3,3.2078]
[1739571353960,3.2078,2738.4,2737.6,5.8528]
[1739571354168,3.2078,2738.4,2737.9,0.73021]
[1739571354368,0.00547545,2738.3,2737.7,0.00547545]
[1739571354764,0.00547545,2738.3,2737.7,0.37107545]
[1739571355166,0.00547545,2738.3,2738.1,0.73017]
[1739571355363,3.9481942,2738.2,2737.7,0.00547545]
[1739571355674,3.93805,2737.8,2737.7,0.00547545]
[1739571356073,5.02665,2737.8,2737.7,0.00547545]
[1739571356266,4.2964,2737.8,2737.1,2.648]
[1739571356574,4.2964,2737.8,2736.9,3.2078]
[1739571356575,3.2078,2737.7,2736.9,3.2078]
[1739571356771,0.73031,2737.6,2737.2,0.7304]
[1739571357077,3.2078,2737.7,2737.2,0.7304]
[1739571357276,3.93808,2737.7,2737.0,2.646]
[1739571357481,3.93808,2737.7,2737.2,0.73039]
[1739571357772,3.2078,2737.7,2737.2,2.642]
[1739571357977,3.93809,2737.7,2737.3,0.73038]
[1739571358179,3.93817,2737.4,2737.0,0.73046]
[1739571358476,3.9481942,2737.6,2736.5,0.5887]
[1739571358477,3.2078,2737.1,2736.5,2.645]
[1739571358878,0.73047,2737.0,2736.6,0.73055]
[1739571359277,3.2078,2737.1,2736.5,2.645]
[1739571359483,0.73048,2737.0,2736.6,0.73056]
[1739571359774,3.2078,2737.1,2736.5,2.645]
[1739571360276,0.73048,2737.0,2736.6,0.73056]
[1739571360480,3.2078,2737.1,2736.5,2.645]
[1739571360675,3.93825,2737.1,2736.7,0.73053]
[1739571360881,3.2078,2737.1,2736.7,0.73053]
[1739571361174,0.5546,2737.3,2736.8,0.7305]
[1739571361175,0.73043,2737.2,2736.8,0.7305]
[1739571361472,0.73043,2737.2,2736.9,0.5567]
[1739571361673,0.5546,2737.3,2736.9,0.5567]
[1739571361874,0.5546,2737.3,2737.0,0.73046]
[1739571362375,0.73053,2736.8,2736.2,3.2078]
[1739571362571,0.73053,2736.8,2736.5,2.642]
[1739571362881,0.73600545,2736.8,2736.5,2.642]
[1739571363075,0.73600545,2736.8,2736.5,3.3726]
[1739571363569,0.00547545,2736.8,2736.5,2.642]
[1739571363770,0.00547545,2736.8,2736.7,0.73055]
[1739571364880,3.2078,2737.7,2736.7,9.9481942]
[1739571365071,3.2078,2738.1,2737.1,3.2078]
[1739571365273,3.2078,2738.1,2737.6,0.73028]
[1739571365474,0.73027,2737.8,2737.5,0.73032]
[1739571365676,0.73027,2737.8,2737.2,2.639]
[1739571365877,0.73024,2737.9,2737.6,0.7303]
[1739571366077,0.00547545,2737.8,2737.6,0.7303]
[1739571366279,0.00547545,2737.8,2737.2,2.64447545]
[1739571366479,0.00547545,2737.8,2737.7,0.73028]
[1739571367283,0.73033,2737.5,2737.3,0.73038]
[1739571367877,0.00547545,2737.8,2737.2,2.64447545]
[1739571368391,0.00547545,2737.8,2737.7,0.73028]
[1739571369674,0.00547545,2737.8,2737.7,3.93808]
[1739571369882,4.2767,2738.7,2737.7,3.2078]
[1739571370081,0.73009,2738.5,2738.0,3.2078]
[1739571370272,0.73009,2738.5,2738.3,0.7301]
[1739571370475,3.2078,2738.6,2738.3,0.7301]
[1739571370476,3.2078,2738.6,2738.3,0.73011]
[1739571370676,3.93785,2738.6,2738.3,0.7301]
[1739571370974,3.93785,2738.6,2738.4,0.73008]
[1739571371180,3.93785,2738.6,2738.1,2.637]
[1739571371375,3.93785,2738.6,2738.4,0.73008]
[1739571371583,3.2078,2738.6,2738.1,2.637]
[1739571372078,3.2078,2738.6,2738.5,0.73007]
[1739571372379,0.00547545,2738.7,2738.6,0.73004]
[1739571374875,0.00547545,2738.7,2738.6,3.93784]
[1739571378988,3.7431,2739.3,2738.6,3.93784]
[1739571379187,3.7431,2739.3,2738.6,4.49314]
[1739571379482,3.7431,2739.3,2738.7,3.34299]
[1739571379483,0.72997,2738.9,2738.7,3.34299]
[1739571379685,3.2078,2739.3,2738.7,2.613]
[1739571379890,3.2078,2739.3,2739.2,0.72988]
[1739571380079,3.21327545,2739.3,2739.2,0.72988]
[1739571382077,3.94314545,2739.3,2739.2,0.72988]
[1739571382281,3.21327545,2739.3,2739.2,0.72988]
[1739571383093,3.94315545,2739.3,2739.1,3.3419]
[1739571383289,0.72991,2739.1,2739.0,0.5569]
[1739571383484,0.72988,2739.2,2739.0,3.1599]
[1739571383794,0.72991,2739.1,2739.0,3.1599]
[1739571384385,1.82478,2739.1,2738.8,2.603]
[1739571384584,0.72996,2738.9,2738.8,2.603]
[1739571387590,0.72999,2738.8,2738.7,5.45e-06]
[1739571387892,2.40363,2738.8,2737.8,0.00435427]
[1739571388086,0.73011,2738.4,2738.1,0.73016]
[1739571388288,3.7864,2738.8,2737.9,0.5424]
[1739571388493,3.2078,2738.8,2737.9,3.7502]
[1739571388789,0.73011,2738.4,2738.2,0.73013]
[1739571388991,3.2078,2738.8,2738.2,2.606]
[1739571389188,0.73012,2738.3,2738.2,2.606]
[1739571389392,3.2078,2738.5,2738.1,0.00547545]
[1739571389393,0.73015,2738.2,2738.1,0.00547545]
[1739571390482,3.93795,2738.2,2738.1,0.00547545]
[1739571390901,3.93795,2738.2,2738.1,5.45e-06]
[1739571391486,0.73047,2737.0,2736.9,0.91639421]
[1739571391694,5.03347,2737.8,2737.0,0.73046]
[1739571391891,0.73044,2737.1,2737.0,0.73046]
[1739571392093,0.73046,2737.1,2736.9,4.07888421]
[1739571392297,3.2078,2737.4,2736.9,4.07888421]
[1739571392488,0.73042,2737.2,2736.9,3.34840421]
[1739571392688,0.73041,2737.3,2737.1,0.73042]
[1739571392896,0.73041,2737.3,2736.9,3.35387966]
[1739571392897,0.73044,2737.2,2737.0,0.73046]
[1739571393387,0.00547545,2737.4,2737.3,0.73039]
[1739571393589,0.00547545,2737.4,2737.3,2.601]
[1739571394586,0.00547545,2737.4,2737.3,3.33139]
[1739571394790,0.00547545,2737.4,2737.3,3.69699]
[1739571395689,0.00547545,2737.4,2737.3,6.90479]
[1739571399990,3.7433,2738.3,2737.3,6.90479]
[1739571399991,3.7433,2738.3,2737.5,1.82584]
[1739571400191,0.73025,2737.9,2737.7,3.2078]
[1739571400390,0.73022,2738.0,2737.8,3.31524]
[1739571401193,5.56864,2738.3,2737.8,3.31524]
[1739571401194,0.73018,2738.1,2738.0,0.7302]
[1739571401392,0.73563545,2738.2,2737.8,2.585]
[1739571401795,0.73563545,2738.2,2738.0,0.73018]
[1739571402495,0.00547545,2738.2,2738.0,0.73018]
[1739571402696,0.73021,2738.0,2737.9,0.73022]
[1739571402897,0.73019,2738.1,2737.9,0.73022]
[1739571403202,0.73019,2738.1,2737.9,1.28652]
[1739571404704,0.73019,2738.1,2737.9,1.28651]
[1739571405005,0.73019,2738.1,2738.0,0.7302]
[1739571405602,0.7302,2738.0,2737.9,1.28652]
[1739571405803,0.00547545,2738.2,2737.9,0.5563]
[1739571406105,0.7302,2738.0,2737.9,1.28651]
[1739571406404,0.73019,2738.1,2738.0,0.7302]
[1739571406911,0.73018,2738.1,2738.0,0.73019]
[1739571407100,0.73563545,2738.2,2738.1,0.73017]
[1739571407503,0.73019,2738.1,2738.0,0.73019]
[1739571407805,0.7302,2738.0,2737.9,1.28651]
[1739571408007,0.7302,2738.1,2738.0,0.7302]
[1739571408807,0.73564545,2738.2,2738.1,0.73017]
[1739571409006,0.73562545,2738.2,2738.1,0.73017]
[1739571409502,0.00547545,2738.2,2738.1,0.73017]
[1739571410212,0.00547545,2738.2,2738.1,3.87595784]
[1739571414609,0.00547545,2738.2,2738.1,4.16815741]
[1739571414903,0.72999,2738.8,2738.7,0.73]
[1739571415110,1.27539,2738.9,2738.7,0.73]
[1739571415310,0.5454,2738.9,2738.7,0.73]
[1739571415602,1.27538,2738.9,2738.7,0.73]
[1739571415809,0.72999,2738.8,2738.7,0.73]
[1739571416006,1.27538,2738.9,2738.7,0.73]
[1739571416212,0.72999,2738.8,2738.7,0.73]
[1739571418111,0.00547545,2739.0,2738.7,0.73002]
[1739571418306,0.00547545,2739.0,2738.6,2.558]
[1739571418512,0.72998,2738.9,2738.8,0.72999]
[1739571419914,0.00547545,2739.0,2738.6,2.558]
[1739571420420,0.72998,2738.9,2738.6,2.558]
[1739571420710,0.72998,2738.9,2738.8,0.72999]
[1739571421714,0.00547545,2739.0,2738.7,0.18174816]
[1739571421908,0.00547545,2739.0,2738.9,0.72996]
[1739571421909,0.73541545,2739.0,2738.9,0.72996]
[1739571422117,0.72998,2738.9,2738.8,0.72998]
[1739571423617,0.72999,2738.8,2738.7,0.91173816]
[1739571423916,0.72997,2738.9,2738.8,0.72998]
[1739571426912,0.72997,2738.9,2738.7,0.18174816]
[1739571427109,0.72997,2738.9,2738.8,0.72999]
[1739571428522,1.82491,2738.9,2738.5,3.75267545]
[1739571428817,3.93784,2738.6,2738.5,0.00547545]
[1739571429024,0.73004,2738.6,2738.5,0.00547545]
[1739571430219,3.93784,2738.6,2738.5,0.00547545]
[1739571430522,3.2078,2738.6,2738.5,0.00547545]
[1739571430728,0.00547545,2739.0,2738.5,0.00547545]
[1739571430729,0.73003,2738.7,2738.5,0.00547545]
[1739571431021,0.73003,2738.7,2738.6,0.73002]
[1739571431225,0.73003,2738.7,2738.5,0.73552545]
[1739571431526,0.73004,2738.6,2738.5,0.73552545]
[1739571431724,0.73001,2738.8,2738.7,0.73002]
[1739571431922,0.73001,2738.8,2738.7,0.73]
[1739571431923,0.73,2738.8,2738.7,0.73]
[1739571432326,0.00547545,2739.0,2738.7,2.529]
[1739571432527,0.72997,2738.9,2738.8,0.72998]
[1739571432930,0.73542545,2739.0,2738.7,2.529]
[1739571433121,0.00547545,2739.0,2738.9,0.72996]
[1739571433423,0.00547545,2739.0,2738.7,2.529]
[1739571433424,0.73541545,2739.0,2738.7,2.529]
[1739571433621,0.00547545,2739.0,2738.9,0.72996]
[1739571435120,0.00547545,2739.0,2738.9,1.31216]
[1739571435721,0.00547545,2739.0,2738.9,4.51996]
[1739571436228,0.00547545,2739.0,2738.9,5.57629808]
[1739571436425,0.00547545,2739.0,2738.9,4.51996]
[1739571437127,0.00547545,2739.0,2738.9,5.57629808]
[1739571437323,0.00547545,2739.0,2738.9,4.51996]
[1739571438325,0.00547545,2739.0,2738.9,5.57629808]
[1739571438625,0.00547545,2739.0,2738.9,5.75785248]
[1739571439228,0.00547545,2739.0,2738.9,4.7015144]
[1739571439527,0.00547545,2739.0,2738.9,5.75785248]
[1739571444236,1.28517,2739.7,2739.5,0.72979]
[1739571444528,0.72979,2739.6,2739.5,2.51]
[1739571444734,0.72979,2739.6,2739.5,3.2398]
[1739571445037,1.28516,2739.7,2739.6,0.72978]
[1739571445336,0.5554,2739.7,2739.5,3.2398]
[1739571445631,0.5554,2739.7,2739.6,0.72978]
[1739571446029,1.28516,2739.7,2739.5,3.23978]
[1739571446235,0.5554,2739.7,2739.5,3.23978]
[1739571446431,1.28517,2739.7,2739.5,2.51]
[1739571446735,0.5554,2739.7,2739.6,0.72978]
[1739571447539,1.28515,2739.7,2739.5,3.23979]
[1739571447729,1.28516,2739.7,2739.5,3.23979]
[1739571448229,1.28516,2739.7,2739.5,2.51]
[1739571448435,0.5554,2739.7,2739.6,0.72978]
[1739571449036,1.28516,2739.7,2739.6,0.72978]
[1739571449433,0.5554,2739.7,2739.6,0.72978]
[1739571449638,1.28515,2739.7,2739.6,0.72978]
[1739571449936,0.5554,2739.7,2739.6,0.72978]
[1739571450530,0.5554,2739.7,2739.5,2.51]
[1739571450737,1.28516,2739.7,2739.6,0.72978]
[1739571450943,1.28516,2739.7,2739.2,5.56235784]
[1739571450944,1.82458,2739.5,2738.7,1.05633808]
[1739571451130,0.72992,2739.1,2738.9,0.72996]
[1739571451337,0.5791,2739.0,2738.9,0.72996]
[1739571452530,0.5902,2739.2,2739.1,0.72991]
[1739571452931,0.72988,2739.3,2738.8,2.502]
[1739571452932,0.5376,2739.4,2738.9,6.35358784]
[1739571454143,0.5873,2739.7,2738.9,6.35358784]
[1739571454335,1.2674,2739.6,2739.0,1.82485]
[1739571454635,0.5376,2739.6,2739.2,6.35358784]
[1739571454836,0.5376,2739.6,2739.5,0.7298]
[1739571456539,0.5376,2739.6,2739.3,3.66]
[1739571456744,1.26738,2739.6,2739.4,0.72981]
[1739571456938,0.5376,2739.6,2739.4,0.72981]
[1739571457243,0.5376,2739.6,2739.5,0.7298]
[1739571458234,0.5376,2739.6,2739.3,3.66]
[1739571458445,0.5376,2739.6,2739.4,0.72982]
[1739571458639,1.26739,2739.6,2739.4,0.72983]
[1739571458834,0.5376,2739.6,2739.3,3.66]
[1739571459037,0.5376,2739.6,2739.5,0.7298]
[1739571460844,0.5376,2739.6,2739.3,2.505]
[1739571461045,0.5376,2739.6,2739.2,3.7429]
[1739571461337,0.72995,2739.0,2738.9,0.3656]
[1739571461544,0.72995,2739.0,2738.9,2.502]
[1739571461936,0.575,2739.2,2738.9,2.502]
[1739571462245,0.72993,2739.1,2738.9,3.23196]
[1739571462445,1.28144,2739.0,2738.9,2.502]
[1739571462746,0.5515,2739.0,2738.9,3.23196]
[1739571462944,0.5515,2739.0,2738.5,4.26961353]
[1739571463149,0.73015,2738.2,2737.9,4.26413808]
[1739571463339,6.35358784,2738.7,2738.0,2.502]
[1739571463543,0.73015,2738.2,2738.0,2.502]
[1739571463743,0.73018,2738.1,2737.9,5.7098]
[1739571463943,3.14578784,2738.4,2737.6,24.49913808]
[1739571464139,3.14578784,2738.4,2737.9,0.73023]
[1739571464140,0.5347,2738.0,2737.9,0.73023]
[1739571465148,0.5347,2738.0,2737.7,2.50747545]
[1739571465348,1.2649,2738.0,2737.7,3.23774545]
[1739571465543,0.5347,2738.0,2737.7,0.00547545]
[1739571465757,0.73026,2737.8,2737.7,2.50747545]
[1739571466152,0.5347,2738.0,2737.7,2.50747545]
[1739571466348,1.31974,2737.9,2737.7,2.50747545]
[1739571467151,0.73026,2737.8,2737.7,2.50747545]
[1739571468364,0.5895,2737.9,2737.7,2.50747545]
[1739571468662,1.31973,2737.9,2737.7,3.23775545]
[1739571469064,0.5895,2737.9,2737.7,3.23775545]
[1739571469261,0.73025,2737.8,2737.7,2.50747545]
[1739571469563,1.31974,2737.9,2737.7,3.23775545]
[1739571470063,1.31974,2737.9,2737.7,3.23774545]
[1739571471063,1.31974,2737.9,2737.8,0.73025]
[1739571471259,1.31974,2737.9,2737.7,2.50747545]
[1739571471561,1.31974,2737.9,2737.8,0.73025]
[1739571472261,0.5895,2737.9,2737.7,2.50747545]
[1739571472466,0.73025,2737.8,2737.7,3.23773545]
[1739571472765,0.73025,2737.8,2737.7,3.23775545]
[1739571473160,1.31975,2737.9,2737.8,0.73025]
[1739571473361,0.73025,2737.8,2737.7,0.00547545]
[1739571473662,3.87603784,2737.8,2737.7,0.00547545]
[1739571474251,7.08383784,2737.8,2737.7,0.00547545]
[1739571475059,12.35358784,2737.8,2737.2,3.2078]
[1739571475256,0.73048,2737.0,2736.9,0.73048]
[1739571475464,0.73048,2737.0,2736.9,3.23348]
[1739571477467,0.73048,2737.0,2736.9,2.503]
[1739571477764,0.73048,2737.0,2736.9,3.2335]
[1739571478552,0.73048,2737.0,2736.9,2.503]
[1739571479761,0.73047,2737.1,2737.0,0.73046]
[1739571479971,0.73045,2737.1,2737.0,0.73047]
[1739571480165,1.1432,2737.3,2736.9,2.503]
[1739571480367,0.73047,2737.0,2736.9,3.23349]
[1739571481467,0.73047,2737.0,2736.9,2.503]
[1739571481767,0.73047,2737.0,2736.9,3.2335]
[1739571481968,1.1432,2737.3,2736.9,2.503]
[1739571482266,0.73047,2737.0,2736.9,3.23348]
[1739571482468,1.1432,2737.3,2736.9,2.503]
[1739571482663,0.73047,2737.0,2736.9,2.503]
[1739571483860,0.73047,2737.0,2736.9,3.2335]
[1739571484474,0.73047,2737.0,2736.9,2.503]
[1739571484669,0.73047,2737.0,2736.9,3.2335]
[1739571485569,1.1432,2737.3,2736.9,2.503]
[1739571485767,0.73046,2737.1,2737.0,0.73046]
[1739571485969,0.73047,2737.0,2736.9,3.23348]
[1739571488264,0.73046,2737.1,2736.9,3.23348]
[1739571488472,0.73046,2737.1,2737.0,0.73047]
[1739571488672,3.2078,2738.1,2737.0,12.35358784]
[1739571488869,3.2078,2738.1,2737.3,6.35358784]
[1739571489065,3.2078,2738.1,2737.4,5.50141]
[1739571489273,0.73024,2737.9,2737.7,0.73027]
[1739571489669,3.2078,2738.1,2738.0,0.7302]
[1739571490065,0.00547545,2738.3,2737.9,3.14578784]
[1739571490267,0.00547545,2738.3,2738.2,0.73015]
[1739571490869,0.00547545,2738.3,2738.2,3.23415]
[1739571492678,0.00547545,2738.3,2738.2,6.44195]
[1739571494280,0.00547545,2738.3,2738.2,3.23415]
[1739571497172,0.00547545,2738.3,2738.2,0.73015]
[1739571497374,0.73033,2737.6,2737.5,2.503]
[1739571497573,1.82551,2738.0,2737.3,0.73038]
[1739571497574,3.2078,2737.9,2737.3,0.73038]
[1739571497774,3.14578784,2737.7,2737.2,2.503]
[1739571497971,0.73039,2737.3,2737.2,2.503]
[1739571498171,3.2078,2737.5,2736.9,2.503]
[1739571498379,0.73046,2737.1,2736.9,2.503]
[1739571498578,0.73045,2737.1,2736.9,3.23348]
[1739571499181,0.73045,2737.1,2736.9,2.503]
[1739571499380,0.73045,2737.1,2736.9,3.23349]
[1739571499681,0.73045,2737.1,2736.9,2.503]
[1739571499873,3.2078,2737.2,2736.9,2.503]
[1739571500074,0.73047,2737.0,2736.9,2.503]
[1739571500978,0.73045,2737.1,2736.9,3.23349]
[1739571501373,0.73045,2737.1,2736.9,2.503]
[1739571501575,0.73045,2737.1,2736.9,3.23349]
[1739571501775,0.73045,2737.1,2736.9,2.503]
[1739571501976,3.2078,2737.2,2736.9,3.23349]
[1739571502178,3.2078,2737.5,2736.9,2.503]
[1739571502377,3.93814,2737.5,2737.3,0.73037]
[1739571502776,0.73034,2737.5,2737.3,0.73037]
[1739571503270,0.5511,2737.6,2736.9,5.7108]
[1739571503474,0.73043,2737.2,2736.9,2.503]